bitfinex-derivatives/quotes_SOLF0:USTF0_20250409
["timestamp","ask_amount","ask_price","bid_price","bid_amount"]
[1744213406823,9.47683967,106.34,106.32,9.47521004]
[1744213407625,9.4129,106.33,106.32,0.06171004]
[1744213408324,9.47693967,106.34,106.32,0.06171004]
[1744213408527,9.47693967,106.34,106.32,9.47521004]
[1744213409421,9.4129,106.33,106.32,0.06171004]
[1744213409726,0.06433967,106.34,106.32,0.06171004]
[1744213410830,9.47663967,106.34,106.32,9.47521004]
[1744213411331,0.06433967,106.34,106.32,0.06171004]
[1744213411525,9.4129,106.33,106.32,0.06171004]
[1744213417031,9.47673967,106.34,106.32,0.06171004]
[1744213417331,0.06433967,106.34,106.32,0.06171004]
[1744213417521,9.4129,106.33,106.32,0.06171004]
[1744213418527,0.06433967,106.34,106.32,0.06171004]
[1744213418830,45.36,106.36,106.32,15.35341495]
[1744213419331,45.36,106.36,106.32,0.06171004]
[1744213419726,9.4115,106.35,106.33,9.4123]
[1744213420033,0.06618524,106.35,106.32,0.06171004]
[1744213420532,9.47768524,106.35,106.33,9.4128]
[1744213421028,9.4125,106.34,106.32,0.06171004]
[1744213421326,0.06618524,106.35,106.32,0.06171004]
[1744213421531,9.4129,106.33,106.32,0.06171004]
[1744213421730,0.06618524,106.35,106.32,0.06171004]
[1744213422132,9.4129,106.33,106.32,0.06171004]
[1744213422529,54.6729,106.33,106.32,0.06171004]
[1744213426334,45.26,106.33,106.26,366.6152]
[1744213426528,45.26,106.33,106.28,9.417]
[1744213427035,15.29170491,106.32,106.26,371.2559]
[1744213427232,15.29170491,106.32,106.26,9.2559]
[1744213427422,9.417,106.29,106.26,9.2559]
[1744213427621,45.34729532,106.3,106.28,9.48796248]
[1744213427839,45.34729532,106.3,106.28,0.07066248]
[1744213428238,9.4165,106.29,106.28,0.07066248]
[1744213428737,54.76339532,106.3,106.28,0.07066248]
[1744213429235,0.06729532,106.3,106.28,0.07066248]
[1744213429434,0.06729532,106.3,106.28,62.07066248]
[1744213430129,0.06729532,106.3,106.29,9.4165]
[1744213433540,0.06729532,106.3,106.28,71.48746248]
[1744213433733,0.06729532,106.3,106.28,0.07066248]
[1744213434135,9.4165,106.29,106.28,0.07066248]
[1744213435040,0.06729532,106.3,106.28,0.07066248]
[1744213435236,0.06729532,106.3,106.29,9.4165]
[1744213438742,15.29170491,106.36,106.31,9.4138]
[1744213439044,9.4116,106.35,106.29,15.29170491]
[1744213439244,9.4116,106.35,106.3,4.4272]
[1744213439545,9.4116,106.35,106.33,9.4125]
[1744213439838,45.28,106.38,106.31,24.31320491]
[1744213440143,0.06072886,106.35,106.33,0.06585658]
[1744213440647,0.06072886,106.35,106.34,9.412]
[1744213441234,45.28,106.38,106.35,9.4107]
[1744213441436,45.28,106.38,106.31,24.31320491]
[1744213441742,9.4098,106.37,106.34,9.4113]
[1744213442237,45.28,106.38,106.31,386.31320491]
[1744213442437,0.03835798,106.37,106.34,0.06255613]
[1744213442648,15.33006289,106.37,106.34,0.06255613]
[1744213443346,15.29170491,106.35,106.34,0.06255613]
[1744213443547,60.57170491,106.35,106.34,0.06255613]
[1744213443840,54.6911,106.35,106.34,0.06255613]
[1744213449938,69.98280491,106.35,106.34,0.06255613]
[1744213450452,60.57170491,106.35,106.31,9.0215]
[1744213450643,15.29170491,106.33,106.27,362.0]
[1744213450854,15.29170491,106.31,106.26,9.0435]
[1744213451235,9.4168,106.29,106.27,9.4182]
[1744213451741,9.47881725,106.29,106.27,9.48629611]
[1744213452044,9.47881725,106.29,106.27,0.06809611]
[1744213453544,9.47881725,106.29,106.27,9.48619611]
[1744213453843,0.06201725,106.29,106.27,0.06809611]
[1744213454343,0.06201725,106.29,106.28,9.4173]
[1744213455543,0.06201725,106.29,106.27,0.06809611]
[1744213455945,0.06201725,106.29,106.27,9.48579611]
[1744213456950,0.06201725,106.29,106.28,9.4173]
[1744213457850,0.06201725,106.29,106.27,9.48589611]
[1744213458948,0.06201725,106.29,106.28,9.4173]
[1744213460344,0.06201725,106.29,106.27,9.48579611]
[1744213461050,0.06201725,106.29,106.28,9.4173]
[1744213461448,0.06201725,106.29,106.27,0.06809611]
[1744213462549,9.4173,106.28,106.27,0.06809611]
[1744213464450,9.47881725,106.29,106.27,0.06809611]
[1744213466152,9.47881725,106.29,106.27,9.48619611]
[1744213466953,0.06201725,106.29,106.28,9.4173]
[1744213467252,45.16,106.32,106.27,0.06809611]
[1744213467646,9.4153,106.31,106.28,9.4169]
[1744213468148,9.4169,106.29,106.27,0.06809611]
[1744213468355,0.03889685,106.31,106.27,0.06809611]
[1744213468742,9.45399685,106.31,106.28,9.4167]
[1744213469761,9.45399685,106.31,106.29,9.4163]
[1744213469949,9.4156,106.3,106.27,0.06809611]
[1744213470150,0.03889685,106.31,106.27,0.06809611]
[1744213470456,0.03889685,106.31,106.28,71.417]
[1744213470649,9.4156,106.3,106.28,71.417]
[1744213471964,9.4156,106.3,106.28,9.417]
[1744213472362,0.03889685,106.31,106.27,0.06809611]
[1744213473558,9.4157,106.3,106.27,9.48579611]
[1744213473966,9.45409685,106.31,106.28,9.4167]
[1744213474153,0.03889685,106.31,106.28,9.4167]
[1744213474561,9.4156,106.3,106.28,9.4167]
[1744213475262,9.45399685,106.31,106.29,9.4165]
[1744213475964,9.4156,106.3,106.28,9.417]
[1744213476767,9.45419685,106.31,106.29,9.4163]
[1744213476965,0.03889685,106.31,106.29,9.4163]
[1744213477365,9.45389685,106.31,106.28,9.4168]
[1744213477665,0.03889685,106.31,106.28,9.4168]
[1744213477866,9.416,106.3,106.28,9.4168]
[1744213478366,9.45429685,106.31,106.28,9.4168]
[1744213478569,9.45429685,106.31,106.29,9.4164]
[1744213479771,9.4159,106.3,106.28,9.4171]
[1744213479957,9.79709922,106.3,106.27,0.06809611]
[1744213480369,9.417,106.29,106.27,9.48599611]
[1744213481670,9.4161,106.3,106.27,9.48599611]
[1744213481972,9.4161,106.3,106.28,9.4172]
[1744213483365,9.4165,106.29,106.28,9.4172]
[1744213483771,0.03889685,106.31,106.28,9.4172]
[1744213484067,9.4162,106.3,106.28,9.4172]
[1744213484667,9.45429685,106.31,106.29,9.4164]
[1744213486767,0.03889685,106.31,106.27,0.06809611]
[1744213486974,0.03889685,106.31,106.27,15.38141937]
[1744213487468,0.03889685,106.31,106.3,9.4156]
[1744213488380,9.4125,106.34,106.32,9.4136]
[1744213489168,54.4916,106.35,106.33,9.4127]
[1744213489368,54.4916,106.35,106.29,15.31332326]
[1744213489569,9.4121,106.34,106.33,0.05958793]
[1744213494067,24.72542326,106.34,106.33,0.05958793]
[1744213494269,9.4146,106.32,106.28,4.6891]
[1744213494469,15.31332326,106.34,106.29,9.416]
[1744213494774,9.4156,106.3,106.27,362.0]
[1744213494973,9.4156,106.3,106.28,9.4169]
[1744213495278,45.06,106.29,106.28,0.06889629]
[1744213496173,45.06,106.29,106.25,8.60345494]
[1744213496372,15.31332326,106.27,106.25,8.60345494]
[1744213496573,45.06,106.26,106.25,8.60345494]
[1744213497278,54.4791,106.26,106.25,8.60345494]
[1744213499776,9.48917636,106.27,106.25,8.60345494]
[1744213500674,0.07047636,106.27,106.25,8.60345494]
[1744213500982,45.08,106.32,106.26,4.6432]
[1744213501177,9.4152,106.31,106.26,4.6432]
[1744213501377,45.08,106.32,106.26,4.6432]
[1744213501771,45.08,106.32,106.28,9.4173]
[1744213501772,9.4161,106.3,106.28,9.4173]
[1744213501973,0.05800787,106.3,106.28,9.48351357]
[1744213502876,0.05800787,106.3,106.28,0.06621357]
[1744213503381,81.42124902,106.35,106.28,0.06621357]
[1744213503585,45.08,106.36,106.29,15.31332326]
[1744213503767,9.4134,106.33,106.3,62.0]
[1744213503969,45.08,106.36,106.3,62.0]
[1744213504473,45.08,106.36,106.33,9.4125]
[1744213504985,60.39332326,106.39,106.34,9.4117]
[1744213505181,60.39332326,106.39,106.33,15.31332326]
[1744213505375,9.411,106.36,106.35,0.06963263]
[1744213505770,60.39332326,106.39,106.35,0.06963263]
[1744213506174,38.53196962,106.4,106.35,15.38295589]
[1744213506368,38.53196962,106.4,106.37,15.31332326]
[1744213506774,38.53196962,106.4,106.38,9.4077]
[1744213506976,38.53196962,106.4,106.37,15.37480981]
[1744213507286,102.75191901,106.41,106.39,15.31332326]
[1744213507473,266.28389753,106.43,106.4,9.4067]
[1744213507673,9.4041,106.43,106.4,9.4067]
[1744213507975,45.06,106.43,106.4,0.06292469]
[1744213508275,9.4049,106.42,106.4,0.06292469]
[1744213510284,45.06,106.43,106.4,0.06292469]
[1744213510893,54.4645,106.43,106.4,0.06292469]
[1744213511077,54.4645,106.43,106.4,9.46922469]
[1744213512385,54.4645,106.43,106.41,9.4058]
[1744213512690,9.4045,106.43,106.41,9.4058]
[1744213512887,9.4045,106.43,106.4,9.46922469]
[1744213513990,745.64,106.45,106.4,9.46922469]
[1744213514591,9.4045,106.43,106.4,9.46922469]
[1744213515791,9.4037,106.44,106.41,9.4057]
[1744213515987,745.64,106.45,106.4,0.06292469]
[1744213516196,15.31332326,106.44,106.4,0.06292469]
[1744213516487,9.4058,106.41,106.4,0.06292469]
[1744213516700,44.92,106.46,106.4,15.37624795]
[1744213516987,44.92,106.46,106.43,9.4038]
[1744213517191,60.23332326,106.46,106.42,0.06964165]
[1744213517385,9.4041,106.43,106.42,0.06964165]
[1744213517581,54.3241,106.43,106.42,0.06964165]
[1744213518288,54.3241,106.43,106.42,4.165e-05]
[1744213526391,9.4041,106.43,106.42,4.165e-05]
[1744213529795,54.3241,106.43,106.42,4.165e-05]
[1744213532292,0.06402509,106.44,106.42,4.165e-05]
[1744213532794,0.06402509,106.44,106.43,9.4041]
[1744213533005,44.92,106.53,106.43,44.92]
[1744213533293,15.31332326,106.52,106.44,4.7742]
[1744213533601,15.31332326,106.5,106.44,4.7742]
[1744213533794,9.4007,106.47,106.44,4.7742]
[1744213534195,9.4007,106.47,106.44,4.84546417]
[1744213535197,9.4015,106.46,106.44,0.07126417]
[1744213535401,15.31332326,106.48,106.44,0.07126417]
[1744213535702,54.1176,106.49,106.44,0.07126417]
[1744213535903,54.1176,106.49,106.44,9.47416417]
[1744213535904,44.92,106.49,106.44,9.47416417]
[1744213536092,44.92,106.49,106.44,71.47416417]
[1744213536293,69.41092326,106.52,106.45,9.4018]
[1744213536802,19.68132326,106.54,106.47,15.3832794]
[1744213537004,19.68132326,106.54,106.47,15.31332326]
[1744213537195,19.68132326,106.54,106.49,0.07134822]
[1744213537395,15.31332326,106.52,106.49,0.07134822]
[1744213538199,9.3979,106.5,106.49,0.07134822]
[1744213549313,9.397,106.51,106.49,0.07134822]
[1744213549515,44.9,106.52,106.49,0.07134822]
[1744213549906,9.3979,106.5,106.49,0.07134822]
[1744213550400,4.368,106.54,106.49,9.47014822]
[1744213550607,69.00822326,106.55,106.49,0.07134822]
[1744213550807,69.00822326,106.55,106.49,9.46974822]
[1744213551009,53.6949,106.55,106.49,0.07134822]
[1744213551402,49.2071,106.55,106.49,0.07134822]
[1744213551609,49.2071,106.55,106.5,15.31332326]
[1744213551814,49.2071,106.55,106.51,9.3967]
[1744213552014,49.2071,106.55,106.51,9.45811258]
[1744213552216,44.8,106.55,106.51,9.45811258]
[1744213552414,9.3956,106.53,106.51,0.06141258]
[1744213553219,9.3956,106.53,106.51,9.45831258]
[1744213553517,68.99812326,106.58,106.52,62.0]
[1744213553718,53.6848,106.58,106.52,62.0]
[1744213553919,53.6848,106.58,106.54,0.07178595]
[1744213554519,9.3935,106.55,106.54,0.07178595]
[1744213555116,9.3929,106.56,106.54,0.07178595]
[1744213555538,49.2747,106.58,106.54,0.07178595]
[1744213556635,9.3935,106.55,106.54,0.07178595]
[1744213561524,75.40664652,106.55,106.48,4.7149]
[1744213561725,15.31332326,106.53,106.46,19.70632326]
[1744213562031,9.3983,106.5,106.46,19.70632326]
[1744213562639,9.3983,106.5,106.47,9.3998]
[1744213562835,0.07121007,106.49,106.47,9.46507255]
[1744213563339,9.47011007,106.49,106.47,19.22645681]
[1744213563728,0.07121007,106.49,106.47,19.22645681]
[1744213563930,0.07121007,106.49,106.48,19.16098426]
[1744213564340,14.11728426,106.54,106.5,9.3975]
[1744213564531,44.78,106.56,106.53,9.76138426]
[1744213564731,44.78,106.56,106.53,62.0]
[1744213565232,44.78,106.56,106.53,71.76138426]
[1744213565428,20.04416145,106.59,106.53,62.0]
[1744213565633,9.3921,106.57,106.55,9.3934]
[1744213565833,9.3921,106.57,106.53,77.23426145]
[1744213566037,9.3921,106.57,106.55,9.45435082]
[1744213566236,9.3921,106.57,106.55,0.06085082]
[1744213566437,9.3926,106.56,106.55,0.06085082]
[1744213570044,9.3923,106.57,106.55,9.45435082]
[1744213570343,9.3923,106.57,106.55,0.06085082]
[1744213570732,60.01426145,106.61,106.55,44.74085082]
[1744213571046,44.78,106.61,106.55,0.06085082]
[1744213571246,9.3926,106.56,106.55,0.06085082]
[1744213571440,15.23426145,106.61,106.55,0.06085082]
[1744213572041,9.3919,106.57,106.55,9.45385082]
[1744213572542,9.3926,106.56,106.55,0.06085082]
[1744213573347,59.89426145,106.57,106.48,73.89516145]
[1744213573535,15.23426145,106.55,106.48,58.6609]
[1744213573730,15.23426145,106.51,106.45,371.4018]
[1744213573943,15.23426145,106.49,106.45,362.0]
[1744213574344,15.23426145,106.49,106.44,107.53616298]
[1744213574639,0.06036257,106.48,106.46,0.06047244]
[1744213575041,9.4005,106.47,106.46,0.06047244]
[1744213576146,9.4023,106.45,106.44,103.09956298]
[1744213577251,44.66,106.45,106.38,362.0]
[1744213577439,44.66,106.45,106.43,0.06039086]
[1744213577635,29.17956474,106.44,106.4,0.05996415]
[1744213577949,9.4058,106.41,106.38,9.408]
[1744213578134,9.4058,106.41,106.37,44.66]
[1744213578452,0.06561828,106.4,106.39,9.407]
[1744213578839,9.4053,106.42,106.39,9.407]
[1744213579036,0.07084024,106.41,106.39,9.407]
[1744213579251,9.47704024,106.41,106.38,9.47916721]
[1744213579454,9.47704024,106.41,106.38,0.07106721]
[1744213579945,9.4076,106.39,106.38,0.07106721]
[1744213580651,24.43816474,106.4,106.33,44.7]
[1744213580835,44.7,106.39,106.31,362.0]
[1744213581033,9.4104,106.36,106.33,9.4125]
[1744213581645,0.06114795,106.36,106.33,9.47871791]
[1744213581849,0.06114795,106.36,106.34,9.4118]
[1744213582051,0.06114795,106.36,106.33,0.06621791]
[1744213582253,0.06114795,106.36,106.33,62.06621791]
[1744213583245,0.06114795,106.36,106.34,9.4115]
[1744213583438,0.06114795,106.36,106.33,62.06621791]
[1744213584447,44.76114795,106.36,106.33,0.06621791]
[1744213584656,0.06114795,106.36,106.33,0.06621791]
[1744213585146,0.06114795,106.36,106.35,9.4111]
[1744213587450,49.1866,106.43,106.35,95.83816474]
[1744213587636,744.2,106.45,106.35,95.83816474]
[1744213587637,748.9051,106.45,106.37,24.43816474]
[1744213587843,58.899,106.46,106.39,24.43816474]
[1744213588050,49.497,106.46,106.42,9.4045]
[1744213588250,73.93516474,106.46,106.38,44.72]
[1744213588451,9.4024,106.45,106.38,44.72]
[1744213588651,0.05988053,106.43,106.42,9.4043]
[1744213589957,0.05988053,106.43,106.41,0.06111948]
[1744213591142,0.05988053,106.43,106.41,9.46651948]
[1744213591347,0.05988053,106.43,106.41,0.06111948]
[1744213591647,9.46438053,106.43,106.41,0.06111948]
[1744213592260,9.4049,106.42,106.41,0.06111948]
[1744213592443,0.05988053,106.43,106.41,0.06111948]
[1744213593555,0.05988053,106.43,106.42,9.4049]
[1744213598256,0.05988053,106.43,106.41,0.06111948]
[1744213598462,44.72,106.42,106.41,0.06111948]
[1744213598759,78.18906474,106.42,106.34,4.5322]
[1744213598963,78.18906474,106.42,106.38,9.4077]
[1744213599160,78.18906474,106.42,106.34,4.5322]
[1744213599353,24.43816474,106.38,106.32,9.4134]
[1744213599557,44.62,106.37,106.32,9.4134]
[1744213599763,9.4117,106.35,106.34,0.06004115]
[1744213601463,4.44755334,106.36,106.34,0.06004115]
[1744213601765,0.06715334,106.36,106.34,0.06004115]
[1744213602157,0.06715334,106.36,106.35,9.4111]
[1744213602871,0.06715334,106.36,106.34,9.47154115]
[1744213603461,0.06715334,106.36,106.35,9.4111]
[1744213604967,0.06715334,106.36,106.34,9.47194115]
[1744213605165,0.06715334,106.36,106.34,0.06004115]
[1744213605367,9.47785334,106.36,106.34,0.06004115]
[1744213605562,0.06715334,106.36,106.34,0.06004115]
[1744213605968,0.06715334,106.36,106.34,9.47164115]
[1744213606669,0.06715334,106.36,106.35,9.4111]
[1744213607367,9.4064,106.41,106.38,9.4081]
[1744213607566,49.4383,106.43,106.38,9.4081]
[1744213607759,49.4383,106.43,106.35,4.4705]
[1744213607961,9.4063,106.41,106.35,4.4705]
[1744213608161,49.4383,106.43,106.35,4.4705]
[1744213608559,0.07073016,106.4,106.38,9.4081]
[1744213609666,9.47783016,106.4,106.38,9.4081]
[1744213609867,0.07073016,106.4,106.39,9.4076]
[1744213610065,0.07073016,106.4,106.37,0.06357976]
[1744213610472,9.47753016,106.4,106.38,9.4081]
[1744213611172,0.07073016,106.4,106.39,9.4076]
[1744213612070,44.64,106.43,106.37,24.5017445]
[1744213612468,54.0441,106.43,106.38,4.6362]
[1744213612863,9.4041,106.43,106.38,4.6362]
[1744213613065,49.2619,106.46,106.39,24.43816474]
[1744213613275,0.06062929,106.42,106.39,0.06449559]
[1744213613574,9.46622929,106.42,106.39,9.46741092]
[1744213613778,0.06062929,106.42,106.39,0.06061092]
[1744213614075,0.06062929,106.42,106.41,9.4058]
[1744213617672,0.06062929,106.42,106.4,9.4063]
[1744213617874,9.46572929,106.42,106.4,9.4063]
[1744213618676,0.06062929,106.42,106.39,9.46791092]
[1744213618966,0.06062929,106.42,106.39,0.06061092]
[1744213619173,9.4067,106.4,106.39,0.06061092]
[1744213620174,54.0467,106.4,106.39,0.06061092]
[1744213620666,9.4067,106.4,106.39,0.06061092]
[1744213620974,9.4063,106.41,106.39,9.46801092]
[1744213622279,9.4063,106.41,106.39,0.06061092]
[1744213622877,9.4063,106.41,106.39,9.46811092]
[1744213623178,9.46612929,106.42,106.39,0.06061092]
[1744213623364,0.06062929,106.42,106.39,0.06061092]
[1744213623564,9.4064,106.41,106.39,9.46781092]
[1744213623763,9.4064,106.41,106.39,0.06061092]
[1744213623967,0.06062929,106.42,106.39,0.06061092]
[1744213624169,9.4067,106.4,106.39,0.06061092]
[1744213624786,9.4063,106.41,106.39,0.06061092]
[1744213624979,0.06062929,106.42,106.39,0.06061092]
[1744213625379,9.46592929,106.42,106.4,9.4062]
[1744213625784,0.06062929,106.42,106.39,0.06061092]
[1744213626085,0.06062929,106.42,106.41,9.4058]
[1744213626672,9.4026,106.45,106.43,9.4033]
[1744213627181,9.4026,106.45,106.42,9.4043]
[1744213627678,9.4026,106.45,106.42,9.46953268]
[1744213628082,44.64,106.46,106.42,0.06523268]
[1744213628275,29.10696474,106.48,106.42,0.06523268]
[1744213628578,9.4021,106.46,106.43,9.4034]
[1744213628783,9.4021,106.46,106.4,8.9129]
[1744213628983,9.4021,106.46,106.43,0.06524575]
[1744213629178,9.4021,106.46,106.44,9.4027]
[1744213629388,9.4021,106.46,106.43,0.06524575]
[1744213629389,798.6704,106.49,106.43,0.06524575]
[1744213629583,798.6704,106.49,106.43,62.06524575]
[1744213629781,9.4012,106.47,106.44,9.4026]
[1744213630083,798.6704,106.49,106.44,9.4026]
[1744213630287,9.4018,106.46,106.44,0.0672687]
[1744213631082,9.4023,106.45,106.44,0.0672687]
[1744213631969,798.5504,106.49,106.44,0.0672687]
[1744213632385,798.5504,106.49,106.44,9.4700687]
[1744213632584,9.4014,106.46,106.44,9.4700687]
[1744213633184,9.4023,106.45,106.44,0.0672687]
[1744213634290,9.4019,106.46,106.44,0.0672687]
[1744213634787,9.4023,106.45,106.44,0.0672687]
[1744213638987,9.4023,106.45,106.44,6.87e-05]
[1744213639191,13.8314,106.45,106.44,6.87e-05]
[1744213640076,53.9219,106.46,106.44,9.4029687]
[1744213640279,53.98234935,106.46,106.44,9.4029687]
[1744213640490,9.46234935,106.46,106.44,6.87e-05]
[1744213640794,48.9491,106.53,106.44,15.27246794]
[1744213640997,53.4207,106.53,106.46,15.27239924]
[1744213641389,48.9916,106.53,106.5,9.3974]
[1744213641587,53.9156,106.53,106.49,15.27239924]
[1744213641797,4.4716,106.56,106.49,15.27239924]
[1744213641987,4.4716,106.56,106.45,391.04699924]
[1744213641988,108.26468517,106.57,106.54,9.3939]
[1744213642291,113.24188517,106.57,106.51,15.27239924]
[1744213642492,103.84978517,106.57,106.54,0.06094943]
[1744213642798,154.12787851,106.58,106.55,15.27239924]
[1744213642996,321.09974691,106.6,106.58,15.27239924]
[1744213643195,182.70046249,106.6,106.58,59.79239924]
[1744213643493,53.30529121,106.62,106.58,59.79239924]
[1744213643494,53.30529121,106.62,106.61,9.3882]
[1744213643701,380.07365351,106.63,106.61,24.31740113]
[1744213643894,380.07365351,106.63,106.62,62.0]
[1744213644091,9.3844,106.66,106.62,62.0]
[1744213644301,9.3834,106.67,106.61,24.38597895]
[1744213644484,8.9181,106.69,106.63,24.31740113]
[1744213644686,471.39546877,106.73,106.65,24.31740113]
[1744213644890,471.39546877,106.73,106.65,24.37741526]
[1744213645087,471.39546877,106.73,106.68,9.3813]
[1744213645310,471.39546877,106.73,106.69,24.31740113]
[1744213645613,471.39546877,106.73,106.69,0.06124811]
[1744213646197,68.79740113,106.72,106.69,103.16081109]
[1744213646509,9.3803,106.7,106.69,103.16081109]
[1744213646998,33.69770113,106.7,106.69,103.16081109]
[1744213647301,9.382,106.68,106.67,116.44040964]
[1744213647496,68.79740113,106.68,106.65,240.06328273]
[1744213647696,24.31740113,106.66,106.64,317.98460341]
[1744213647898,24.31740113,106.66,106.65,508.77536546]
[1744213648097,24.31740113,106.66,106.65,341.8411751]
[1744213648295,0.06363017,106.67,106.65,341.8411751]
[1744213648498,0.06363017,106.67,106.66,9.3838]
[1744213648697,359.0,106.84,106.66,430.79740113]
[1744213648907,24.31740113,106.78,106.73,9.3776]
[1744213649100,24.31740113,106.8,106.7,68.79740113]
[1744213649605,24.31740113,106.8,106.71,9.379]
[1744213649899,24.31740113,106.8,106.74,0.06675457]
[1744213650296,9.3759,106.75,106.74,0.06675457]
[1744213652090,39.48511947,106.75,106.68,4.7557]
[1744213652291,39.48511947,106.73,106.68,4.7557]
[1744213652507,44.44,106.75,106.68,4.7557]
[1744213653000,83.92511947,106.75,106.68,4.7557]
[1744213653209,9.3807,106.7,106.66,9.3833]
[1744213653501,44.44,106.72,106.7,0.05973291]
[1744213653705,44.44,106.71,106.65,366.5426]
[1744213653896,53.8194,106.71,106.7,0.0673357]
[1744213654096,44.44,106.71,106.65,366.5426]
[1744213654296,44.44,106.76,106.65,362.0]
[1744213654502,0.06866294,106.72,106.69,0.06248104]
[1744213654902,0.06866294,106.72,106.69,9.3806]
[1744213655103,0.06866294,106.72,106.69,0.0623702]
[1744213655503,9.3763,106.75,106.71,9.3786]
[1744213655798,39.48511947,106.78,106.68,53.4375]
[1744213656205,39.48511947,106.76,106.68,8.9975]
[1744213656406,44.44,106.75,106.68,8.9975]
[1744213656592,44.44,106.75,106.71,0.06809108]
[1744213657208,9.3785,106.72,106.71,0.06809108]
[1744213657792,39.48511947,106.76,106.71,0.06809108]
[1744213657999,9.3773,106.74,106.71,0.06809108]
[1744213658210,9.3773,106.74,106.68,9.2204]
[1744213658398,9.3762,106.75,106.71,9.3786]
[1744213658600,4.746,106.78,106.71,0.06230042]
[1744213658799,44.42,106.77,106.71,0.06230042]
[1744213659009,44.42,106.77,106.68,9.2204]
[1744213659202,39.48511947,106.76,106.73,0.06255998]
[1744213659399,39.48511947,106.74,106.65,4.5426]
[1744213659596,44.36,106.73,106.67,149.72233914]
[1744213659796,32.59690764,106.73,106.67,149.72233914]
[1744213659998,9.3817,106.69,106.67,149.72233914]
[1744213660709,9.4467202,106.69,106.67,149.78587069]
[1744213660910,9.4467202,106.69,106.67,0.06353155]
[1744213661110,44.36,106.72,106.67,0.06353155]
[1744213661403,44.36,106.72,106.65,158.79173914]
[1744213661610,44.36,106.72,106.67,9.3824]
[1744213661798,44.36,106.72,106.65,158.79173914]
[1744213662000,44.36,106.72,106.65,9.0694]
[1744213662304,39.48511947,106.76,106.67,0.06636499]
[1744213662510,39.48511947,106.77,106.67,44.36]
[1744213662699,39.48511947,106.77,106.7,0.06283167]
[1744213663006,39.48511947,106.75,106.67,44.36]
[1744213663202,9.3776,106.73,106.72,0.07035128]
[1744213664813,9.3776,106.73,106.72,5.128e-05]
[1744213667412,9.44294166,106.74,106.72,5.128e-05]
[1744213667615,0.06594166,106.74,106.72,5.128e-05]
[1744213668413,44.34,106.77,106.72,5.128e-05]
[1744213668613,9.3765,106.75,106.72,5.128e-05]
[1744213669017,9.3773,106.74,106.72,5.128e-05]
[1744213669310,83.82511947,106.8,106.72,5.128e-05]
[1744213669508,83.82511947,106.8,106.73,9.377]
[1744213669703,83.82511947,106.8,106.71,58.1151]
[1744213669704,83.82511947,106.8,106.75,0.06780822]
[1744213669908,44.34,106.8,106.75,0.06780822]
[1744213670211,9.375,106.76,106.75,0.06780822]
[1744213670913,9.3746,106.77,106.75,0.06780822]
[1744213671417,9.3736,106.78,106.75,0.06780822]
[1744213671617,44.34,106.8,106.75,0.06780822]
[1744213671909,44.34,106.8,106.75,9.44330822]
[1744213672117,44.34,106.8,106.75,0.06780822]
[1744213672514,9.375,106.76,106.75,0.06780822]
[1744213676824,9.3783,106.73,106.71,362.0]
[1744213677027,9.3783,106.73,106.7,9.3797]
[1744213677327,9.3789,106.72,106.69,9.3806]
[1744213677529,44.34,106.76,106.68,13.6228]
[1744213677923,9.44583835,106.73,106.71,0.06627948]
[1744213678315,0.06763835,106.73,106.71,0.06627948]
[1744213678514,0.06763835,106.73,106.72,9.3785]
[1744213678815,0.06763835,106.73,106.71,0.06627948]
[1744213679021,9.3785,106.72,106.71,0.06627948]
[1744213679926,9.44583835,106.73,106.71,0.06627948]
[1744213680223,0.06763835,106.73,106.71,9.44517948]
[1744213680414,0.06763835,106.73,106.71,0.06627948]
[1744213680922,9.44543835,106.73,106.71,9.44517948]
[1744213681424,0.06763835,106.73,106.72,9.3785]
[1744213681613,0.06763835,106.73,106.71,0.06627948]
[1744213681924,0.06763835,106.73,106.72,9.3785]
[1744213682127,44.34,106.79,106.72,44.34]
[1744213682519,9.3733,106.78,106.73,24.28854943]
[1744213682724,4.6359,106.81,106.74,8.9694]
[1744213682924,4.6359,106.81,106.75,44.34]
[1744213683129,44.34,106.82,106.75,68.62854943]
[1744213683316,44.34,106.82,106.77,0.06670444]
[1744213683516,44.34,106.82,106.78,9.3727]
[1744213683517,9.3711,106.81,106.78,9.3727]